{"text_format":"1","workbook":"xlsx","n_sheets":1,"sheets":["Hoja1"],"not_rendered":{"charts":0,"images":0,"macros":1,"external_links":0,"defined_names":0,"comments":0,"pivot_tables":0},"unopened":[],"bounds":{"document_bytes":16777216,"sheet_cells":100000,"rows_first":2000,"rows_last":500,"rows_between":2000,"halvings":0,"cell_chars":16384,"cell_head_chars":4096},"cells_cut":0,"cells_raw":0,"read":"whole","date_system":"1900"}

{"sheet":"Hoja1","index":0,"n_rows":29,"n_cols":36,"rows_kept":29,"cut":false,"hidden":false,"merged":[[0,15,0,26],[0,1,0,12],[2,19,2,20],[1,17,1,20],[1,32,1,33],[2,32,2,33],[1,30,1,31],[2,30,2,31],[1,21,1,26],[2,23,2,24],[2,25,2,26],[0,28,0,35],[1,35,2,35],[1,28,2,29],[1,34,2,34],[2,17,2,18],[2,21,2,22],[1,15,2,16],[1,5,1,6],[2,3,2,4],[1,1,2,2],[1,3,1,4],[2,7,2,8],[2,5,2,6],[1,7,1,8],[1,9,1,12],[2,9,2,10],[2,11,2,12]]}
[null,"COMPETENCIAS SOCIAIS E CÍVICAS 6º PRIMARIA (I)",null,null,null,null,null,null,null,null,null,null,null,null,null,"COMPETENCIAS SOCIAIS E CÍVICAS (II)",null,null,null,null,null,null,null,null,null,null,null,null,"COMPETENCIAS SOCIAIS E CÍVICAS 6º PRIMARIA (III)"]
[null,"6º A",null,"C. DA NATUREZA",null,"CIENCIAS SOCIAIS",null,"E. FÍSICA",null,"E. MUSICAL",null,null,null,null,null,"6º A",null,"L. CASTELÁ",null,null,null,"LINGUA GALEGA",null,null,null,null,null,null,"6º A",null,"E. PLÁSTICA",null,"LINGUA ESTRANXEIRA",null,"NOTA MEDIA","CUALIFICACIÓN"]
[null,null,null,"6º-CNB1.3.1 - Utiliza estratexias para estudar e traballar de forma eficaz, individualmente e en equipo, amosando habilidades para a resolución pacífica de conflitos.",null,"6º-CSB1.10.1 - Desenvolve actitudes de cooperación e de traballo en equipo, valora as ideas alleas e reacciona con intuición, apertura e flexibilidade ante elas.",null,"6º-EFB2.1.1 - Respecta a diversidade de realidades corporais e de niveis de competencia motriz entre os nenos e nenas da clase.",null,"6º-EMB1.3.1 - Coñece, entende e cumpre as normas de comportamento en audicións e representacións musicais.",null,"6º-EMB3.1.7 - Respecta o traballo en grupo e participa nel de xeito pracenteiro, amosando confianza nas propias posibilidades e nas das demais persoas. ",null,null,null,null,null,"6º-LCB1.1.4 - Aplica as normas sociocomunicativas: escoita atenta, espera de quendas participación respectuosa, adecuación á intervención da persoa interlocutora, papel de persoa moderadora e certas normas de cortesía.",null,"6º-LCB1.3.4 - Participa activamente e de forma construtiva nas tarefas de aula, cooperando en situación de aprendizaxe compartida.",null,"6º-LGB1.5.1 - Escoita atentamente as intervencións dos e das demais en actos de fala orais, sen interromper.",null,"6º-LGB1.6.2 - Respecta as opinións das persoas participantes nos intercambios orais e é consciente da posibilidade de empregar a lingua galega en calquera intercambio oral dentro da escola ou fóra dela.",null,"6º-LGB1.6.5 - Participa activamente na conversa formulando e contestando preguntas.",null,null,null,null,"6º-EPB2.5.3 - Amosa interese polo traballo individual e colabora no grupo para a consecución dun fin colectivo, respectando as iniciativas de cada compañeiro ou compañeira.",null,"6º-PLEB5.3 - Participa en conversas cara a cara ou por medios técnicos (...) nas que se establece contacto social (dar as grazas, saudar, despedirse,...) se intercambia información persoal e sobre asuntos cotiás,…)"]
[null,null,"ALUMNO /A","Nota",0.1,"Nota",0.1,"Nota",0.15,"Nota",0.05,"Nota",0.05,null,null,null,"ALUMNO /A","Nota",0.1,"Nota",0.1,"Nota",0.05,"Nota",0.1,"Nota",0.05,null,null,"ALUMNO /A","Nota",0.05,"Nota",0.1,1]
[null,1,null,null,{"$f":"D5*0.1","v":0},null,{"$f":"F5*0.1","v":0},null,{"$f":"H5*0.15","v":0},null,{"$f":"J5*0.05","v":0},null,{"$f":"L5*0.05","v":0},null,null,1,null,null,{"$f":"R5*0.1","v":0},null,{"$f":"T5*0.1","v":0},null,{"$f":"V5*0.05","v":0},null,{"$f":"X5*0.1","v":0},null,{"$f":"Z5*0.05","v":0},null,1,null,null,{"$f":"AE5*0.05","v":0},null,{"$f":"AG5*0.1","v":0},{"$f":"SUM(AH5,AF5,AA5,Y5,W5,U5,S5,M5,K5,I5,G5,E5)","v":0},{"$f":"IF(AI5<5,\"INSUFICIENTE\",IF(AI5<6,\"SUFICIENTE\",IF(AI5<7,\"BIEN\",IF(AI5<9,\"NOTABLE\",\"SOBRESALIENTE\"))))","v":"INSUFICIENTE"}]
[null,2,null,null,{"$f":"D6*0.1","v":0},null,{"$f":"F6*0.1","v":0},null,{"$f":"H6*0.15","v":0},null,{"$f":"J6*0.05","v":0},null,{"$f":"L6*0.05","v":0},null,null,2,null,null,{"$f":"R6*0.1","v":0},null,{"$f":"T6*0.1","v":0},null,{"$f":"V6*0.05","v":0},null,{"$f":"X6*0.1","v":0},null,{"$f":"Z6*0.05","v":0},null,2,null,null,{"$f":"AE6*0.05","v":0},null,{"$f":"AG6*0.1","v":0},0,{"$f":"IF(AI6<5,\"INSUFICIENTE\",IF(AI6<6,\"SUFICIENTE\",IF(AI6<7,\"BIEN\",IF(AI6<9,\"NOTABLE\",\"SOBRESALIENTE\"))))","v":"INSUFICIENTE"}]
[null,3,null,null,0,null,0,null,0,null,0,null,0,null,null,3,null,null,0,null,0,null,0,null,0,null,0,null,3,null,null,0,null,0,0,"INSUFICIENTE"]
[null,4,null,null,0,null,0,null,0,null,0,null,0,null,null,4,null,null,0,null,0,null,0,null,0,null,0,null,4,null,null,0,null,0,0,"INSUFICIENTE"]
[null,5,null,null,0,null,0,null,0,null,0,null,0,null,null,5,null,null,0,null,0,null,0,null,0,null,0,null,5,null,null,0,null,0,0,"INSUFICIENTE"]
[null,{"$f":"B9+1","v":6},null,null,0,null,0,null,0,null,0,null,0,null,null,6,null,null,0,null,0,null,0,null,0,null,0,null,{"$f":"AC9+1","v":6},null,null,0,null,0,0,"INSUFICIENTE"]
[null,{"$f":"B10+1","v":7},null,null,0,null,0,null,0,null,0,null,0,null,null,7,null,null,0,null,0,null,0,null,0,null,0,null,{"$f":"AC10+1","v":7},null,null,0,null,0,0,"INSUFICIENTE"]
[null,8,null,null,0,null,0,null,0,null,0,null,0,null,null,8,null,null,0,null,0,null,0,null,0,null,0,null,8,null,null,0,null,0,0,"INSUFICIENTE"]
[null,9,null,null,0,null,0,null,0,null,0,null,0,null,null,9,null,null,0,null,0,null,0,null,0,null,0,null,9,null,null,0,null,0,0,"INSUFICIENTE"]
[null,10,null,null,0,null,0,null,0,null,0,null,0,null,null,10,null,null,0,null,0,null,0,null,0,null,0,null,10,null,null,0,null,0,0,"INSUFICIENTE"]
[null,11,null,null,0,null,0,null,0,null,0,null,0,null,null,11,null,null,0,null,0,null,0,null,0,null,0,null,11,null,null,0,null,0,0,"INSUFICIENTE"]
[null,12,null,null,0,null,0,null,0,null,0,null,0,null,null,12,null,null,0,null,0,null,0,null,0,null,0,null,12,null,null,0,null,0,0,"INSUFICIENTE"]
[null,13,null,null,0,null,0,null,0,null,0,null,0,null,null,13,null,null,0,null,0,null,0,null,0,null,0,null,13,null,null,0,null,0,0,"INSUFICIENTE"]
[null,14,null,null,0,null,0,null,0,null,0,null,0,null,null,14,null,null,0,null,0,null,0,null,0,null,0,null,14,null,null,0,null,0,0,"INSUFICIENTE"]
[null,15,null,null,0,null,0,null,0,null,0,null,0,null,null,15,null,null,0,null,0,null,0,null,0,null,0,null,15,null,null,0,null,0,0,"INSUFICIENTE"]
[null,16,null,null,0,null,0,null,0,null,0,null,0,null,null,16,null,null,0,null,0,null,0,null,0,null,0,null,16,null,null,0,null,0,0,"INSUFICIENTE"]
[null,17,null,null,0,null,0,null,0,null,0,null,0,null,null,17,null,null,0,null,0,null,0,null,0,null,0,null,17,null,null,0,null,0,0,"INSUFICIENTE"]
[null,18,null,null,0,null,0,null,0,null,0,null,0,null,null,18,null,null,0,null,0,null,0,null,0,null,0,null,18,null,null,0,null,0,0,"INSUFICIENTE"]
[null,19,null,null,0,null,0,null,0,null,0,null,0,null,null,19,null,null,0,null,0,null,0,null,0,null,0,null,19,null,null,0,null,0,0,"INSUFICIENTE"]
[null,20,null,null,0,null,0,null,0,null,0,null,0,null,null,20,null,null,0,null,0,null,0,null,0,null,0,null,20,null,null,0,null,0,0,"INSUFICIENTE"]
[null,21,null,null,0,null,0,null,0,null,0,null,0,null,null,21,null,null,0,null,0,null,0,null,0,null,0,null,21,null,null,0,null,0,0,"INSUFICIENTE"]
[null,22,null,null,0,null,0,null,0,null,0,null,0,null,null,22,null,null,0,null,0,null,0,null,0,null,0,null,22,null,null,0,null,0,0,"INSUFICIENTE"]
[null,23,null,null,0,null,0,null,0,null,0,null,0,null,null,23,null,null,0,null,0,null,0,null,0,null,0,null,23,null,null,0,null,0,0,"INSUFICIENTE"]
[null,24,null,null,0,null,0,null,0,null,0,null,0,null,null,24,null,null,0,null,0,null,0,null,0,null,0,null,24,null,null,0,null,0,0,"INSUFICIENTE"]
[null,25,null,null,0,null,0,null,0,null,0,null,0,null,null,25,null,null,0,null,0,null,{"$f":"V29*0.08","v":0},null,0,null,0,null,25,null,null,0,null,0,0,"INSUFICIENTE"]